bitfinex/quotes_SOLUSD_20250818
["timestamp","ask_amount","ask_price","bid_price","bid_amount"]
[1755514727739,0.06,181.02,181.01,13.6677813]
[1755514727940,0.06,181.02,181.01,55.1677813]
[1755514728336,0.06,181.02,181.01,47.68455665]
[1755514728538,0.06,181.02,181.01,55.1677813]
[1755514730161,0.06,181.02,181.01,121.3077813]
[1755514737143,0.06,181.02,181.01,113.82455665]
[1755514737679,0.06,181.02,181.01,121.3077813]
[1755514739986,7.48322465,181.07,181.01,121.3077813]
[1755514740188,7.48322465,181.07,181.01,113.82455665]
[1755514740388,7.48322465,181.06,181.01,121.3077813]
[1755514741062,7.48322465,181.06,181.01,113.82455665]
[1755514741266,7.48322465,181.06,181.01,121.3077813]
[1755514741575,7.48322465,181.06,181.03,5.5239463]
[1755514741782,7.48322465,181.06,181.03,46.6839463]
[1755514742081,8.17322465,181.06,181.03,46.6839463]
[1755514742768,0.69,181.06,181.03,46.6839463]
[1755514743092,7.48322465,181.06,181.03,47.3839463]
[1755514743389,0.69,181.07,181.03,113.5239463]
[1755514743588,7.48322465,181.06,181.03,113.5239463]
[1755514744597,8.17322465,181.07,181.04,0.7]
[1755514744897,0.06,181.06,181.04,0.7]
[1755514745991,0.06,181.06,181.05,0.7]
[1755514746291,0.06,181.06,181.05,66.84]
[1755514746692,0.06,181.06,181.05,66.14]
[1755514750687,0.06,181.06,181.05,66.84]
[1755514752701,0.06,181.06,181.05,107.72]
[1755514753077,0.06,181.06,181.05,107.02]
[1755514753508,7.54322465,181.06,181.05,107.02]
[1755514753676,0.06,181.06,181.05,107.02]
[1755514753877,7.54322465,181.06,181.05,107.02]
[1755514754175,7.54322465,181.06,181.05,66.14]
[1755514754417,4.85745518,181.06,181.05,66.14]
[1755514755407,3.75630311,181.06,181.05,66.14]
[1755514757188,4.47630311,181.06,181.05,66.14]
[1755514757394,9.27375829,181.06,181.05,66.14]
[1755514757888,8.55375829,181.06,181.05,66.14]
[1755514758191,13.39433387,181.06,181.05,66.14]
[1755514758388,18.9173649,181.06,181.05,66.14]
[1755514759095,18.9173649,181.06,181.05,77.12079127]
[1755514759096,3.75630311,181.06,181.05,77.12079127]
[1755514759311,3.75630311,181.06,181.05,72.32333609]
[1755514759483,8.55375829,181.06,181.05,66.14]
[1755514759688,12.67886534,181.06,181.05,66.14]
[1755514760290,13.39886534,181.06,181.05,66.14]
[1755514760515,18.92189637,181.06,181.05,66.14]
[1755514761510,38.68394104,181.06,181.05,66.14]
[1755514761688,34.02811194,181.06,181.05,66.14]
[1755514762399,34.02811194,181.06,181.05,56.8085633]
[1755514762711,34.02811194,181.06,181.01,40.7]
[1755514762915,4.79745518,181.02,181.0,91.3785633]
[1755514763094,14.06489261,181.05,181.0,90.7185633]
[1755514763095,3.719841,181.01,181.0,90.7185633]
[1755514763290,3.719841,181.01,181.0,91.3785633]
[1755514764091,3.719841,181.01,181.0,90.7185633]
[1755514764293,12.6541383,181.01,181.0,50.0385633]
[1755514764493,8.57668312,181.01,181.0,0.03]
[1755514764714,13.3741383,181.01,181.0,0.03]
[1755514765219,8.57668312,181.01,181.0,0.03]
[1755514765420,12.6541383,181.01,181.0,0.03]
[1755514765708,9.23729618,181.01,181.0,0.03]
[1755514765887,13.37623096,181.01,181.0,0.03]
[1755514766088,18.90078761,181.01,181.0,0.03]
[1755514766302,21.60619297,181.01,181.0,0.03]
[1755514766611,16.08600016,181.01,181.0,0.03]
[1755514766917,15.36600016,181.01,181.0,0.03]
[1755514767923,16.08600016,181.01,181.0,0.03]
[1755514768430,15.36600016,181.01,181.0,0.03]
[1755514769090,7.86313962,181.01,181.0,0.69]
[1755514770393,3.72420484,181.01,181.0,6.21486187]
[1755514770594,3.72420484,181.04,181.0,13.71772241]
[1755514770830,0.06,181.06,181.03,7.50286054]
[1755514771127,3.71967135,181.05,181.03,7.50286054]
[1755514771422,3.71967135,181.04,181.03,13.02680559]
[1755514771919,0.06,181.06,181.03,13.68680559]
[1755514772117,3.71961767,181.05,181.03,13.02680559]
[1755514772304,0.06,181.06,181.04,0.66]
[1755514772509,3.71958381,181.05,181.04,0.66]
[1755514773030,3.71958381,181.05,181.04,6.18364118]
[1755514773205,3.71958381,181.05,181.04,13.68650172]
[1755514774794,3.71958381,181.05,181.04,54.22650172]
[1755514778422,3.71958381,181.05,181.04,46.72364118]
[1755514778612,3.71958381,181.05,181.04,54.22650172]
[1755514778906,3.71958381,181.05,181.04,104.23506502]
[1755514780794,0.06,181.06,181.04,104.23506502]
[1755514780998,0.06,181.06,181.05,8.16286054]
[1755514781594,0.06,181.06,181.04,96.07220448]
[1755514781795,0.06,181.06,181.04,103.57506502]
[1755514782019,0.06,181.06,181.05,40.42]
[1755514782207,3.77773493,181.06,181.05,40.42]
[1755514782936,3.77773493,181.06,181.04,90.4085633]
[1755514783238,3.71773493,181.05,181.04,90.3885633]
[1755514784438,3.71773493,181.05,181.04,91.0485633]
[1755514784610,3.71773493,181.05,181.04,50.6685633]
[1755514785011,3.71773493,181.05,181.04,50.0085633]
[1755514785609,3.71773493,181.05,181.04,63.69506502]
[1755514786835,3.71773493,181.05,181.04,104.03506502]
[1755514787041,3.71773493,181.05,181.04,63.69506502]
[1755514787214,3.71773493,181.05,181.04,104.03506502]
[1755514789165,3.71773493,181.05,181.04,63.69506502]
[1755514789345,3.71773493,181.05,181.04,104.03506502]
[1755514790026,0.06,181.06,181.04,104.03506502]
[1755514790250,0.06,181.06,181.05,8.22286054]
[1755514790950,0.06,181.06,181.05,13.74619663]
[1755514793658,0.06,181.06,181.05,63.75475993]
[1755514794526,0.06,181.06,181.05,104.09475993]
[1755514795534,0.06,181.06,181.05,95.87189939]
[1755514796046,0.06,181.06,181.05,90.3485633]
[1755514796047,11.96790894,181.06,181.05,90.3485633]
[1755514796359,11.96790894,181.06,181.05,50.0085633]
[1755514796938,11.27790894,181.06,181.05,50.0085633]
[1755514797451,11.96790894,181.06,181.05,50.0085633]
[1755514799948,4.4650484,181.06,181.05,50.0085633]
[1755514800145,4.4650484,181.06,181.05,63.75475993]
[1755514800146,3.7750484,181.06,181.05,63.75475993]
[1755514800348,0.06,181.06,181.05,63.75475993]
[1755514800553,0.06,181.08,181.07,26.0]
[1755514800757,0.06,181.08,181.07,123.85142384]
[1755514800944,0.06,181.08,181.07,124.57142384]
[1755514801351,0.06,181.08,181.07,126.78460884]
[1755514802035,0.06,181.08,181.07,132.30733485]
[1755514802959,0.06,181.09,181.07,132.30733485]
[1755514803146,1e-08,181.09,181.08,16.27796318]
[1755514803348,1e-08,181.09,181.08,8.77510264]
[1755514805371,1e-08,181.09,181.08,64.30608696]
[1755514805566,1e-08,181.09,181.08,79.41230253]
[1755514805866,1e-08,181.09,181.08,86.91516307]
[1755514806369,1e-08,181.1,181.08,86.91516307]
[1755514806563,1e-08,181.1,181.09,48.54286054]
[1755514806750,0.06,181.12,181.11,49.94856329]
[1755514806952,0.06,181.12,181.11,97.77142383]
[1755514807152,0.06,181.12,181.11,98.49142383]
[1755514807470,0.06,181.12,181.11,106.22562509]
[1755514807847,0.06,181.14,181.13,26.0]
[1755514808049,0.06,181.14,181.13,73.82286054]
[1755514808264,0.06,181.14,181.13,74.54286054]
[1755514809467,0.06,181.14,181.13,53.34375713]
[1755514809959,0.06,181.14,181.13,54.06375713]
[1755514811148,0.75,181.14,181.13,49.84856329]
[1755514812379,8.25286054,181.14,181.13,49.84856329]
[1755514812683,8.25286054,181.14,181.12,40.32]
[1755514812876,8.19286054,181.13,181.12,40.32]
[1755514814283,8.19286054,181.13,181.09,55.37057143]
[1755514814578,8.19286054,181.12,181.1,40.3]
[1755514814767,7.50286054,181.11,181.09,55.37057143]
[1755514814969,7.50286054,181.11,181.1,40.3]
[1755514815365,7.50286054,181.11,181.08,49.84856329]
[1755514815566,7.50286054,181.09,181.06,40.3]
[1755514815774,7.50286054,181.07,181.05,40.3]
[1755514815985,8.19286054,181.06,181.05,40.3]
[1755514816464,8.19286054,181.06,181.04,0.03]
[1755514816671,8.17286054,181.05,181.04,0.03]
[1755514818167,0.67,181.05,181.04,0.03]
[1755514818487,7.50286054,181.05,181.04,0.03]
[1755514818660,0.67,181.07,181.04,0.03]
[1755514818661,7.50286054,181.06,181.04,0.74]
[1755514819169,7.50286054,181.06,181.04,6.26363993]
[1755514820689,3.70241403,181.07,181.04,6.26363993]
[1755514820988,7.50286054,181.06,181.04,6.26363993]
[1755514821764,7.50286054,181.06,181.05,0.71]
[1755514822260,7.50286054,181.07,181.05,0.71]
[1755514822691,7.50286054,181.06,181.04,5.55363993]
[1755514822876,3.70241403,181.08,181.04,6.26363993]
[1755514823192,7.50286054,181.06,181.05,40.3]
[1755514824384,8.17286054,181.06,181.04,49.87856329]
[1755514824566,7.50286054,181.05,181.04,49.87856329]
[1755514824757,3.70241403,181.07,181.04,49.87856329]
[1755514824758,4.37241403,181.07,181.04,49.87856329]
[1755514824961,7.50286054,181.05,181.04,49.87856329]
[1755514826477,8.17286054,181.05,181.04,49.87856329]
[1755514828278,7.50286054,181.05,181.04,49.87856329]
[1755514831006,8.17286054,181.05,181.04,49.87856329]
[1755514831484,13.69619663,181.05,181.04,0.03]
[1755514831691,32.50924584,181.05,181.04,0.03]
[1755514832280,22.60907611,181.04,181.01,0.03]
[1755514832607,22.60907611,181.02,181.01,0.03]
[1755514832772,31.84016121,181.02,181.01,0.03]
[1755514833083,32.51016121,181.02,181.01,0.03]
[1755514834203,32.51016121,181.02,181.01,1.03]
[1755514834408,58.51016121,181.02,181.01,1.03]
[1755514834782,15.10621557,181.01,181.0,0.03]
[1755514834987,25.00760586,181.01,181.0,0.03]
[1755514835302,32.5104664,181.01,181.0,0.03]
[1755514835492,25.00760586,181.01,181.0,0.03]
[1755514835672,32.5104664,181.01,181.0,0.03]
[1755514836772,28.80363276,181.01,181.0,0.03]
[1755514836974,32.50401534,181.01,181.0,0.03]
[1755514839188,28.80363276,181.01,181.0,0.03]
[1755514839384,69.10363276,181.01,181.0,0.03]
[1755514839804,61.60077222,181.01,181.0,0.03]
[1755514839998,69.10363276,181.01,181.0,0.03]
[1755514843012,28.80363276,181.01,181.0,0.03]
[1755514843189,68.41363276,181.01,181.0,0.03]
[1755514843520,60.91077222,181.01,181.0,0.03]
[1755514843688,68.41363276,181.01,181.0,0.03]
[1755514843885,28.215391,181.02,181.0,0.03]
[1755514844086,0.06,181.05,181.0,0.74]
[1755514844320,7.50286054,181.03,181.0,0.74]
[1755514844785,0.06,181.05,181.0,0.74]
[1755514844989,7.50286054,181.04,181.0,0.74]
[1755514845183,0.06,181.05,181.0,0.74]
[1755514845398,7.56286054,181.05,181.0,6.2645854]
[1755514845598,7.56286054,181.05,181.0,5.5545854]
[1755514845805,7.50286054,181.03,181.01,0.71]
[1755514846711,0.06,181.05,181.02,0.68]
[1755514846886,7.50286054,181.03,181.0,0.03]
[1755514847196,7.50286054,181.02,181.0,0.71]
[1755514848598,9.95505604,181.05,181.0,0.71]
[1755514848793,7.50286054,181.02,181.01,0.68]
[1755514848998,7.50286054,181.03,181.02,0.68]
[1755514849203,7.50286054,181.03,181.0,5.55481863]
[1755514849713,7.56286054,181.05,181.0,7.53286054]
[1755514849916,7.56286054,181.05,181.01,0.68]
[1755514851120,0.06,181.05,181.01,0.68]
[1755514851316,7.50286054,181.03,181.02,0.68]
[1755514852114,7.50286054,181.03,181.0,6.23478344]
[1755514852321,7.50286054,181.02,181.01,0.68]
[1755514853305,5.58335403,181.05,181.01,0.68]
[1755514853507,7.50286054,181.02,181.01,0.68]
[1755514853917,7.50286054,181.02,181.0,0.03]
[1755514854107,5.52376229,181.04,181.0,0.03]
[1755514854306,7.50286054,181.01,181.0,0.03]
[1755514854507,7.50286054,181.01,181.0,0.71]
[1755514855400,7.50286054,181.01,181.0,0.03]
[1755514855621,8.18286054,181.01,181.0,49.87856329]
[1755514855923,13.70741719,181.01,181.0,49.87856329]
[1755514856099,13.70741719,181.01,181.0,0.03]
[1755514856610,17.40134033,181.01,181.0,0.03]
[1755514857328,32.5075559,181.01,181.0,0.03]
[1755514857719,36.61565518,181.01,181.0,0.03]
[1755514860327,22.60907611,181.0,180.99,0.03]
[1755514860513,71.35109853,181.0,180.98,0.03]
[1755514860714,15.30488296,180.99,180.98,0.03]
[1755514861033,11.19678368,180.99,180.98,0.71]
[1755514861808,11.19678368,180.99,180.98,0.03]
[1755514862530,16.72195081,180.99,180.98,0.03]
[1755514862731,20.83566558,180.99,180.98,0.03]
[1755514863221,21.51566558,180.99,180.98,0.03]
[1755514863414,20.84419533,180.99,180.98,0.03]
[1755514863726,11.20531343,180.99,180.98,0.71]
[1755514866939,11.20531343,180.99,180.98,0.03]
[1755514869738,7.50286054,180.99,180.98,0.03]
[1755514869934,11.20666763,180.99,180.98,0.03]
[1755514873135,17.41183476,180.99,180.98,0.03]
[1755514873342,32.51805033,180.99,180.98,0.03]
[1755514873514,36.64000608,180.99,180.98,0.03]
[1755514874130,36.64000608,180.99,180.97,0.03]
[1755514874335,86.88503472,180.98,180.97,0.03]
[1755514875128,86.88418863,180.98,180.97,0.03]
[1755514875331,79.38132809,180.98,180.97,0.03]
[1755514875532,86.88418863,180.98,180.97,0.03]
[1755514875750,92.40966105,180.98,180.97,0.03]
[1755514876052,92.40969839,180.98,180.97,0.03]
[1755514876928,66.40969839,180.98,180.97,0.03]
[1755514877253,81.51591396,180.98,180.97,0.03]
[1755514877432,76.87950262,180.98,180.97,0.03]
[1755514878335,76.87841267,180.98,180.97,0.03]
[1755514879342,76.87841267,180.98,180.95,0.03]
[1755514879343,15.10621557,180.97,180.95,0.03]
[1755514879555,78.15580079,180.96,180.95,0.03]
[1755514879851,81.51243448,180.96,180.95,0.03]
[1755514880156,80.81243448,180.96,180.95,0.03]
[1755514880453,106.81243448,180.96,180.95,0.03]
[1755514880636,15.32672468,180.96,180.95,0.69]
[1755514880840,16.73275074,180.96,180.95,0.69]
[1755514882644,76.17740531,180.96,180.95,0.03]
[1755514882852,76.87740531,180.96,180.95,0.03]
[1755514884551,76.87472843,180.96,180.95,0.03]
[1755514885237,89.01100009,180.96,180.95,0.03]
[1755514885446,84.37758897,180.96,180.95,0.03]
[1755514886539,84.37799565,180.96,180.95,0.03]
[1755514887137,89.00755305,180.96,180.95,0.03]
[1755514887336,89.00755305,180.96,180.95,1e-08]
[1755514887559,15.10621557,180.95,180.94,0.03]
[1755514887773,31.129052,180.95,180.94,0.03]
[1755514888276,35.05645612,180.95,180.94,0.03]
[1755514889192,40.58284462,180.95,180.94,0.03]
[1755514891174,41.28284462,180.95,180.94,0.03]
[1755514892158,40.58284462,180.95,180.94,0.03]
[1755514894093,32.2480828,180.95,180.94,0.03]
[1755514894263,40.57645087,180.95,180.94,0.03]
[1755514894775,40.57674216,180.95,180.94,0.03]
[1755514895792,13.3407949,180.95,180.94,0.69]
[1755514895980,20.84365544,180.95,180.94,0.69]
[1755514896775,35.94987101,180.95,180.94,0.69]
[1755514897888,35.94987101,180.95,180.94,0.03]
[1755514899595,40.57674216,180.95,180.94,0.03]
[1755514900391,40.57674216,180.95,180.94,0.69]
[1755514901890,80.75674216,180.95,180.94,0.69]
[1755514902177,76.12987101,180.95,180.94,0.69]
[1755514902771,68.62701047,180.95,180.94,0.69]
[1755514902986,3.70149692,180.95,180.94,0.69]
[1755514903981,11.20435746,180.95,180.94,0.69]
[1755514904294,3.70149692,180.95,180.94,0.69]
[1755514907806,11.20435746,180.95,180.94,0.69]
[1755514908998,9.22788542,180.95,180.94,0.03]
[1755514909186,16.73074596,180.95,180.94,0.03]
[1755514909694,76.82385418,180.95,180.94,0.03]
[1755514909896,102.82385418,180.95,180.94,0.03]
[1755514910478,81.45072533,180.95,180.94,0.03]
[1755514911485,41.10621557,180.93,180.92,0.03]
[1755514911685,96.58746568,180.93,180.92,0.03]
[1755514912102,96.58866599,180.93,180.92,0.03]
[1755514912479,96.59044989,180.93,180.92,0.03]
[1755514912702,96.59044989,180.93,180.92,0.7]
[1755514912904,56.43044989,180.93,180.92,0.7]
[1755514913277,56.43115413,180.93,180.92,0.7]
[1755514913716,61.95815352,180.93,180.92,0.7]
[1755514914005,61.95815352,180.93,180.92,0.03]
[1755514914301,67.3117162,180.93,180.92,0.03]
[1755514914481,62.67557198,180.93,180.92,0.03]
[1755514916096,61.96557198,180.93,180.92,0.03]
[1755514916405,22.60907611,180.91,180.9,0.7]
[1755514916588,35.07233461,180.91,180.9,0.7]
[1755514918013,40.59994502,180.91,180.9,0.7]
[1755514920609,7.82949648,180.91,180.9,0.7]
[1755514920786,3.70891538,180.91,180.9,0.7]
[1755514920988,1.72891538,180.91,180.9,13.73077651]
[1755514921796,1.72891538,180.91,180.9,0.03]
[1755514924196,9.94177592,180.91,180.9,0.03]
[1755514924395,14.06686179,180.91,180.9,0.03]
[1755514924702,19.5944722,180.91,180.9,0.03]
[1755514925304,34.70068777,180.91,180.9,0.03]
[1755514926229,17.99062381,180.91,180.9,0.03]
[1755514926523,13.35716407,180.91,180.9,0.03]
[1755514928017,1.72891538,180.91,180.9,47.65286054]
[1755514928329,12.19662256,180.97,180.91,5.52761041]
[1755514928516,4.12665549,180.96,180.92,7.50286054]
[1755514928718,4.83665549,180.96,180.92,7.50286054]
[1755514929514,4.83665549,180.96,180.92,13.02993956]
[1755514930029,0.06,180.97,180.92,13.02993956]
[1755514930215,4.18557072,180.97,180.92,13.02993956]
[1755514930529,0.77,180.97,180.92,13.02993956]
[1755514930729,12.39853448,180.97,180.92,13.02993956]
[1755514931021,8.27286054,180.97,180.92,13.02993956]
[1755514931221,0.06,180.97,180.92,13.02993956]
[1755514931424,4.18472751,180.97,180.92,13.02993956]
[1755514933044,3.71156238,180.96,180.92,13.02993956]
[1755514933225,3.71156238,180.95,180.92,13.02993956]
[1755514933537,8.27286054,180.97,180.92,7.50286054]
[1755514933742,8.54391286,180.96,180.92,7.50286054]
[1755514933924,3.71078726,180.95,180.92,7.50286054]
[1755514934125,3.71078726,180.94,180.92,7.50286054]
[1755514934427,3.71053661,180.95,180.92,7.50286054]
[1755514934633,7.56286054,180.97,180.92,7.50286054]
[1755514934835,3.71054412,180.96,180.92,7.50286054]
[1755514935023,3.71054412,180.95,180.92,7.50286054]
[1755514935223,8.27286054,180.97,180.93,5.52699939]
[1755514935420,3.71011739,180.96,180.93,5.52699939]
[1755514935641,3.71011739,180.95,180.93,5.52699939]
[1755514935942,8.27286054,180.97,180.93,5.52699939]
[1755514936144,3.70988764,180.96,180.93,5.52699939]
[1755514936442,0.06,180.97,180.94,7.50286054]
[1755514936629,3.70993111,180.96,180.94,7.50286054]
[1755514936939,0.06,180.97,180.94,66.80286054]
[1755514937310,0.06,180.97,180.95,5.5263885]
[1755514937514,0.06,180.97,180.95,64.8263885]
[1755514938417,3.76870467,180.97,180.95,64.8263885]
[1755514938751,0.06,180.97,180.96,7.50286054]
[1755514939118,0.06,180.97,180.96,47.58286054]
[1755514939324,0.06,180.97,180.96,53.10894365]
[1755514940828,0.06,180.97,180.96,45.60608311]
[1755514941061,0.06,180.97,180.96,53.10894365]
[1755514941762,0.06,180.97,180.96,112.40894365]
[1755514946264,0.06,180.97,180.96,104.90608311]
[1755514946442,0.06,180.97,180.96,72.32894365]
[1755514946641,0.06,180.97,180.96,112.36894365]
[1755514947337,0.06,180.99,180.98,59.18]
[1755514947544,0.06,180.99,180.98,106.72286054]
[1755514949158,0.06,180.99,180.98,112.24833296]
[1755514950883,0.06,180.99,180.98,104.74547242]
[1755514952354,0.06,180.99,180.98,112.22833296]
[1755514952677,0.06,180.99,180.98,104.72547242]
[1755514953278,0.06,180.99,180.98,104.62547242]
[1755514953570,0.72,180.99,180.98,104.62547242]
[1755514954249,0.72,180.99,180.98,64.60547242]
[1755514954456,0.72,180.99,180.98,104.62547242]
[1755514954655,8.22286054,180.99,180.98,99.1]
[1755514954859,8.22286054,180.99,180.98,59.08]
[1755514955180,8.22286054,180.99,180.98,99.1]
[1755514955576,0.72,180.99,180.98,99.1]
[1755514955962,8.22286054,180.99,180.98,99.1]
[1755514956287,0.72,180.99,180.98,99.1]
[1755514956461,8.22286054,180.99,180.98,99.1]
[1755514958972,0.72,180.99,180.98,99.1]
[1755514959165,8.22286054,180.99,180.98,59.08]
[1755514959359,8.22286054,180.99,180.98,99.08]
[1755514960689,13.74802767,180.99,180.98,59.11]
[1755514960863,28.85424324,180.99,180.98,0.03]
[1755514961065,15.10621557,180.98,180.91,59.11]
[1755514961265,3.7062081,180.97,180.92,40.0]
[1755514961475,7.50286054,180.93,180.92,40.0]
[1755514961779,8.16286054,180.93,180.92,40.0]
[1755514962367,8.16286054,180.93,180.91,0.03]
[1755514962587,8.16286054,180.92,180.91,40.03]
[1755514962799,7.50286054,180.92,180.91,40.03]
[1755514963099,8.16286054,180.92,180.91,40.03]
[1755514963614,8.16286054,180.92,180.91,0.03]
[1755514963998,0.66,180.92,180.91,0.03]
[1755514964203,7.50286054,180.92,180.91,0.03]
[1755514964788,3.69725548,180.95,180.91,0.03]
[1755514965012,0.66,180.96,180.92,40.0]
[1755514965318,3.69725548,180.97,180.93,7.50286054]
[1755514965520,8.22286054,180.99,180.94,47.50286054]
[1755514965714,11.26011602,180.99,180.94,47.50286054]
[1755514965886,11.26011602,180.99,180.94,40.0]
[1755514965887,8.16286054,180.98,180.94,40.0]
[1755514966089,0.66,180.97,180.94,40.0]
[1755514966288,7.50286054,180.98,180.94,40.0]
[1755514966289,0.78,180.99,180.94,47.50286054]
[1755514966522,4.47725548,180.99,180.95,7.50286054]
[1755514966702,0.78,180.99,180.96,45.52582944]
[1755514967621,0.72,180.98,180.96,45.52582944]
[1755514969204,0.06,180.99,180.96,45.52582944]
[1755514969408,3.75725548,180.99,180.96,45.52582944]
[1755514969789,0.06,180.99,180.96,53.02868998]
[1755514969993,3.75725548,180.99,180.96,53.02868998]
[1755514970208,0.06,180.99,180.96,53.05868998]
[1755514971104,0.06,180.99,180.98,5.52547242]
[1755514971304,0.06,180.99,180.98,104.58547242]
[1755514971916,0.06,180.99,180.98,112.08833296]
[1755514972135,0.06,180.99,180.98,104.58547242]
[1755514973223,0.78,180.99,180.98,104.58547242]
[1755514974025,0.06,180.99,180.98,104.58547242]
[1755514975435,0.06,180.99,180.98,112.08833296]
[1755514976430,0.06,180.99,180.98,104.58547242]
[1755514976612,0.06,180.99,180.98,112.08833296]
[1755514977508,0.06,180.99,180.98,104.58547242]
[1755514979636,0.06,180.99,180.98,112.08833296]
[1755514980536,0.06,181.01,180.99,85.07999999]
[1755514980830,0.06,181.01,181.0,47.99534672]
[1755514981003,0.06,181.01,181.0,48.02534672]
[1755514981205,0.06,181.01,181.0,47.47286054]
[1755514981606,0.06,181.01,181.0,52.99772241]
[1755514981806,1e-08,181.01,181.0,52.99772241]
[1755514983031,0.06,181.03,181.02,26.0]
[1755514983214,1e-08,181.03,181.02,264.07528567]
[1755514983409,1e-08,181.03,181.02,263.55286053]
[1755514983610,1e-08,181.05,181.03,5.5239463]
[1755514983925,0.06,181.09,181.07,26.0]
[1755514984125,0.06,181.09,181.08,47.47286054]
[1755514984316,0.06,181.09,181.08,106.52286053]
[1755514985025,0.06,181.09,181.08,106.50286053]
[1755514985230,0.06,181.09,181.08,98.99999999]
[1755514985439,0.06,181.09,181.08,106.50286053]
[1755514985734,0.06,181.09,181.08,112.02528155]
[1755514985934,0.06,181.09,181.08,112.05528155]
[1755514986136,0.06,181.09,181.08,112.02528155]
[1755514986838,0.06,181.09,181.08,112.05528155]
[1755514992430,0.06,181.09,181.08,112.02528155]
[1755514993254,0.06,181.09,181.08,112.05528155]
[1755514993559,0.06,181.09,181.08,112.02528155]
[1755514994624,0.06,181.14,181.12,58.23999999]
[1755514994826,0.06,181.14,181.13,39.88]
[1755514995246,0.06,181.14,181.13,57.63999999]
[1755514995460,0.06,181.14,181.13,97.51999999]
[1755514995655,0.06,181.14,181.13,57.63999999]
[1755514995953,0.06,181.14,181.13,97.51999999]
[1755514996164,0.06,181.14,181.13,103.02089658]
[1755514996534,0.06,181.14,181.13,110.52375712]
[1755514996733,0.73,181.14,181.13,110.52375712]
[1755514996952,0.73,181.14,181.13,103.02089658]
[1755514997146,0.73,181.14,181.13,110.52375712]
[1755514997668,0.06,181.14,181.13,110.52375712]
[1755514999159,0.06,181.14,181.13,70.66375712]
[1755514999454,0.73,181.14,181.13,110.52375712]
[1755514999645,0.06,181.14,181.13,110.52375712]
[1755515000654,0.06,181.16,181.15,56.84999999]
[1755515000840,0.06,181.16,181.15,96.70999999]
[1755515001026,0.06,181.16,181.15,102.23028704]
[1755515001857,0.06,181.16,181.15,96.70999999]
[1755515002727,0.73,181.16,181.15,96.70999999]
[1755515003741,8.23286054,181.16,181.15,96.70999999]
[1755515003963,8.23286054,181.16,181.15,56.84999999]
[1755515004145,13.75284287,181.16,181.15,56.84999999]
[1755515004943,13.75284287,181.16,181.12,39.84]
[1755515005267,7.50286054,181.13,181.12,39.84]
[1755515005485,7.50286054,181.13,181.11,39.84]
[1755515005777,8.17286054,181.12,181.11,39.84]
[1755515008256,0.67,181.14,181.11,45.36150626]
[1755515008459,0.67,181.13,181.11,45.36150626]
[1755515008839,8.17286054,181.13,181.11,45.36150626]
[1755515009466,0.67,181.13,181.11,101.61150625]
[1755515009663,8.17286054,181.13,181.11,101.61150625]
[1755515009855,0.67,181.13,181.11,101.61150625]
[1755515010253,7.50286054,181.13,181.11,101.61150625]
[1755515010572,0.67,181.12,181.11,101.61150625]
[1755515010878,7.50286054,181.13,181.11,101.61150625]
[1755515011047,8.17286054,181.13,181.11,101.61150625]
[1755515011445,7.50286054,181.14,181.11,101.61150625]
[1755515011650,0.06,181.16,181.12,0.71]
[1755515011958,0.06,181.16,181.13,40.53]
[1755515012470,0.06,181.16,181.13,96.77999999]
[1755515013159,0.73,181.16,181.13,96.77999999]
[1755515013565,0.73,181.16,181.13,101.59078549]
[1755515013767,8.23286054,181.16,181.13,101.59078549]
[1755515014165,7.50286054,181.14,181.13,101.59078549]
[1755515014765,8.17286054,181.14,181.13,96.06999999]
[1755515017164,8.17286054,181.14,181.13,56.24999999]
[1755515017958,7.50286054,181.14,181.13,56.24999999]
[1755515019675,8.17286054,181.14,181.13,56.24999999]